[Event "Late Titled Tuesday Blitz February 8 2022"]
[White "Fishbein, Alexander"]
[Black "Dobre, Claudiu-Cristian"]
[WhiteFideId "2000377"]
[BlackFideId "1211854"]
[WhiteElo "2442"]
[BlackElo "2207"]
[Result "1-0"]
[Round "08"]
[TimeControl "180+1"]
[Date "2022.02.09"]
[WhiteClock "0:00:35"]
[BlackClock "0:00:01"]

1. e4 {[%clk 0:03:00]}  Nc6 {[%clk 0:02:59]} 2. Nf3 {[%clk 0:03:00]}  d6 {[%clk 0:02:59]} 3. d4 {[%clk 0:03:00]}  Nf6 {[%clk 0:02:59]} 4. c3 {[%clk 0:02:59]}  g6 {[%clk 0:02:57]} 5. Bd3 {[%clk 0:02:55]}  Bg7 {[%clk 0:02:57]} 6. O-O {[%clk 0:02:55]}  O-O {[%clk 0:02:57]} 7. Nbd2 {[%clk 0:02:55]}  e5 {[%clk 0:02:56]} 8. Re1 {[%clk 0:02:55]}  Re8 {[%clk 0:02:52]} 9. h3 {[%clk 0:02:47]}  d5 {[%clk 0:02:37]} 10. exd5 {[%clk 0:02:43]}  Nxd5 {[%clk 0:02:35]} 11. Nc4 {[%clk 0:02:37]}  exd4 {[%clk 0:02:31]} 12. Bg5 {[%clk 0:02:32]}  f6 {[%clk 0:01:53]} 13. Rxe8+ {[%clk 0:02:29]}  Qxe8 {[%clk 0:01:53]} 14. Bd2 {[%clk 0:02:28]}  dxc3 {[%clk 0:01:53]} 15. bxc3 {[%clk 0:02:27]}  Be6 {[%clk 0:01:50]} 16. Qc2 {[%clk 0:02:18]}  Qf7 {[%clk 0:01:37]} 17. Ne3 {[%clk 0:02:06]}  Nxe3 {[%clk 0:01:22]} 18. Bxe3 {[%clk 0:02:04]}  Rd8 {[%clk 0:01:22]} 19. h4 {[%clk 0:01:57]}  Bc4 {[%clk 0:01:13]} 20. Bxc4 {[%clk 0:01:48]}  Qxc4 {[%clk 0:01:13]} 21. h5 {[%clk 0:01:48]}  Rd3 {[%clk 0:01:00]} 22. hxg6 {[%clk 0:01:38]}  hxg6 {[%clk 0:00:59]} 23. Rc1 {[%clk 0:01:31]}  b5 {[%clk 0:00:42]} 24. Ne1 {[%clk 0:01:28]}  Rd8 {[%clk 0:00:33]} 25. Qxg6 {[%clk 0:01:27]}  Qxa2 {[%clk 0:00:33]} 26. Nf3 {[%clk 0:01:15]}  Qf7 {[%clk 0:00:31]} 27. Qb1 {[%clk 0:01:13]}  a6 {[%clk 0:00:26]} 28. Nh4 {[%clk 0:01:12]}  Ne7 {[%clk 0:00:20]} 29. Bc5 {[%clk 0:01:09]}  Re8 {[%clk 0:00:13]} 30. Bxe7 {[%clk 0:01:08]}  Qxe7 {[%clk 0:00:11]} 31. Qg6 {[%clk 0:00:47]}  Qf7 {[%clk 0:00:11]} 32. Qg4 {[%clk 0:00:46]}  Qc4 {[%clk 0:00:08]} 33. Qh5 {[%clk 0:00:39]}  Qf7 {[%clk 0:00:08]} 34. Qf3 {[%clk 0:00:39]}  Bh6 {[%clk 0:00:04]} 35. Rd1 {[%clk 0:00:38]}  Qe6 {[%clk 0:00:02]} 36. Nf5 {[%clk 0:00:36]}  Bf8 {[%clk 0:00:01]} 37. Qg4+ {[%clk 0:00:35]} 1-0


[Site "https://www.chess.com"]

[Event "Late Titled Tuesday Blitz February 8 2022"]
[White "Gerbelli Neto, Eduardo"]
[Black "Mirza, Diana"]
[WhiteFideId "2103281"]
[BlackFideId "2503999"]
[WhiteElo "2178"]
[BlackElo "1813"]
[Result "1-0"]
[Round "08"]
[TimeControl "180+1"]
[Date "2022.02.09"]
[WhiteClock "0:02:07"]
[BlackClock "0:01:11"]

1. e4 {[%clk 0:03:00]}  e5 {[%clk 0:02:56]} 2. Nf3 {[%clk 0:03:00]}  d6 {[%clk 0:02:54]} 3. d4 {[%clk 0:02:59]}  exd4 {[%clk 0:02:55]} 4. Bc4 {[%clk 0:02:59]}  Be7 {[%clk 0:02:47]} 5. Nxd4 {[%clk 0:02:53]}  Nf6 {[%clk 0:02:45]} 6. Nc3 {[%clk 0:02:53]}  O-O {[%clk 0:02:45]} 7. O-O {[%clk 0:02:53]}  Nxe4 {[%clk 0:02:39]} 8. Nxe4 {[%clk 0:02:52]}  d5 {[%clk 0:02:39]} 9. Bd3 {[%clk 0:02:47]}  dxe4 {[%clk 0:02:38]} 10. Bxe4 {[%clk 0:02:48]}  Nd7 {[%clk 0:02:32]} 11. Nf5 {[%clk 0:02:40]}  Nf6 {[%clk 0:02:12]} 12. Nxe7+ {[%clk 0:02:37]}  Qxe7 {[%clk 0:02:13]} 13. Bf3 {[%clk 0:02:37]}  Bf5 {[%clk 0:02:12]} 14. c3 {[%clk 0:02:36]}  Rad8 {[%clk 0:02:11]} 15. Qa4 {[%clk 0:02:33]}  c6 {[%clk 0:01:48]} 16. Qxa7 {[%clk 0:02:27]}  Ra8 {[%clk 0:01:31]} 17. Qe3 {[%clk 0:02:27]}  Qc7 {[%clk 0:01:27]} 18. Qg5 {[%clk 0:02:24]}  Bg6 {[%clk 0:01:26]} 19. Bf4 {[%clk 0:02:17]}  Qb6 {[%clk 0:01:23]} 20. b3 {[%clk 0:02:17]}  Ra5 {[%clk 0:01:23]} 21. Qg3 {[%clk 0:02:11]}  Nh5 {[%clk 0:01:17]} 22. Bxh5 {[%clk 0:02:11]}  Bxh5 {[%clk 0:01:18]} 23. Bc7 {[%clk 0:02:11]}  Qa6 {[%clk 0:01:11]} 24. Bxa5 {[%clk 0:02:11]}  Qxa5 {[%clk 0:01:12]} 25. Rfe1 {[%clk 0:02:08]}  Qxc3 {[%clk 0:01:11]} 26. Qxc3 {[%clk 0:02:07]} 1-0


[Site "https://www.chess.com"]

[Event "Late Titled Tuesday Blitz February 8 2022"]
[White "Gracia Alvarez, Gerardo Antonio"]
[Black "Karttunen, Mika"]
[WhiteFideId "5109124"]
[BlackFideId "502081"]
[WhiteElo "2139"]
[BlackElo "2343"]
[Result "1-0"]
[Round "08"]
[TimeControl "180+1"]
[Date "2022.02.09"]
[WhiteClock "0:00:06"]
[BlackClock "0:00:14"]

1. e4 {[%clk 0:03:00]}  c5 {[%clk 0:02:56]} 2. Be2 {[%clk 0:03:00]}  d5 {[%clk 0:02:55]} 3. d3 {[%clk 0:02:54]}  dxe4 {[%clk 0:02:51]} 4. dxe4 {[%clk 0:02:55]}  Qxd1+ {[%clk 0:02:51]} 5. Bxd1 {[%clk 0:02:56]}  Nf6 {[%clk 0:02:50]} 6. Nd2 {[%clk 0:02:51]}  Nc6 {[%clk 0:02:47]} 7. f4 {[%clk 0:02:51]}  Bg4 {[%clk 0:02:39]} 8. Ngf3 {[%clk 0:02:47]}  Bxf3 {[%clk 0:02:35]} 9. Bxf3 {[%clk 0:02:47]}  Nd4 {[%clk 0:02:35]} 10. Bd1 {[%clk 0:02:46]}  e6 {[%clk 0:02:24]} 11. c3 {[%clk 0:02:46]}  Nc6 {[%clk 0:02:24]} 12. Bf3 {[%clk 0:02:43]}  e5 {[%clk 0:02:18]} 13. Nc4 {[%clk 0:02:37]}  Nd7 {[%clk 0:02:16]} 14. a4 {[%clk 0:02:33]}  Be7 {[%clk 0:02:09]} 15. Be3 {[%clk 0:02:27]}  O-O {[%clk 0:02:04]} 16. O-O-O {[%clk 0:02:23]}  Nb6 {[%clk 0:01:56]} 17. Nxe5 {[%clk 0:02:12]}  Nxe5 {[%clk 0:01:50]} 18. fxe5 {[%clk 0:02:12]}  Rfd8 {[%clk 0:01:43]} 19. a5 {[%clk 0:01:59]}  Nc4 {[%clk 0:01:43]} 20. Bf4 {[%clk 0:01:59]}  Nxa5 {[%clk 0:01:42]} 21. Kc2 {[%clk 0:01:53]}  Rxd1 {[%clk 0:01:35]} 22. Rxd1 {[%clk 0:01:52]}  Rd8 {[%clk 0:01:35]} 23. Rxd8+ {[%clk 0:01:36]}  Bxd8 {[%clk 0:01:35]} 24. Bg4 {[%clk 0:01:36]}  c4 {[%clk 0:01:21]} 25. e6 {[%clk 0:01:34]}  f6 {[%clk 0:01:00]} 26. e5 {[%clk 0:01:07]}  fxe5 {[%clk 0:00:43]} 27. Bxe5 {[%clk 0:01:06]}  Nc6 {[%clk 0:00:44]} 28. Bd6 {[%clk 0:01:03]}  Be7 {[%clk 0:00:44]} 29. Bg3 {[%clk 0:01:01]}  g6 {[%clk 0:00:39]} 30. Bf3 {[%clk 0:01:01]}  Kg7 {[%clk 0:00:38]} 31. Bxc6 {[%clk 0:00:56]}  bxc6 {[%clk 0:00:39]} 32. Be5+ {[%clk 0:00:57]}  Kh6 {[%clk 0:00:38]} 33. Kd2 {[%clk 0:00:39]}  Kg5 {[%clk 0:00:38]} 34. Ke3 {[%clk 0:00:34]}  Kf5 {[%clk 0:00:38]} 35. Bb8 {[%clk 0:00:34]}  Bc5+ {[%clk 0:00:36]} 36. Kf3 {[%clk 0:00:33]}  Kxe6 {[%clk 0:00:36]} 37. Ke4 {[%clk 0:00:34]}  a5 {[%clk 0:00:34]} 38. g4 {[%clk 0:00:34]}  a4 {[%clk 0:00:34]} 39. h3 {[%clk 0:00:32]}  Bf2 {[%clk 0:00:32]} 40. Bf4 {[%clk 0:00:28]}  Bc5 {[%clk 0:00:31]} 41. Bg5 {[%clk 0:00:28]}  Bb6 {[%clk 0:00:29]} 42. Bc1 {[%clk 0:00:27]}  c5 {[%clk 0:00:22]} 43. Be3 {[%clk 0:00:26]}  Kd6 {[%clk 0:00:22]} 44. h4 {[%clk 0:00:25]}  Ba5 {[%clk 0:00:21]} 45. Bd2 {[%clk 0:00:23]}  Ke6 {[%clk 0:00:20]} 46. Be3 {[%clk 0:00:19]}  a3 {[%clk 0:00:16]} 47. bxa3 {[%clk 0:00:19]}  Bxc3 {[%clk 0:00:17]} 48. Bxc5 {[%clk 0:00:18]}  Bf6 {[%clk 0:00:17]} 49. h5 {[%clk 0:00:14]}  gxh5 {[%clk 0:00:15]} 50. gxh5 {[%clk 0:00:15]}  Bc3 {[%clk 0:00:16]} 51. Bd4 {[%clk 0:00:13]}  Ba5 {[%clk 0:00:14]} 52. a4 {[%clk 0:00:13]}  Bb4 {[%clk 0:00:14]} 53. Ba1 {[%clk 0:00:09]}  c3 {[%clk 0:00:14]} 54. Kd3 {[%clk 0:00:08]}  Kd5 {[%clk 0:00:14]} 55. Bxc3 {[%clk 0:00:08]}  Bc5 {[%clk 0:00:14]} 56. a5 {[%clk 0:00:08]}  Ba7 {[%clk 0:00:14]} 57. Ke2 {[%clk 0:00:07]}  Kc4 {[%clk 0:00:13]} 58. Be1 {[%clk 0:00:06]}  Kb5 {[%clk 0:00:13]} 59. Kf3 {[%clk 0:00:07]}  Bd4 {[%clk 0:00:13]} 60. Ke4 {[%clk 0:00:06]}  Bg7 {[%clk 0:00:13]} 61. Kf5 {[%clk 0:00:06]}  Bh6 {[%clk 0:00:12]} 62. Ke6 {[%clk 0:00:05]}  Be3 {[%clk 0:00:12]} 63. Kf7 {[%clk 0:00:05]}  h6 {[%clk 0:00:13]} 64. Kg6 {[%clk 0:00:05]}  Bf4 {[%clk 0:00:13]} 65. Bc3 {[%clk 0:00:05]}  Be3 {[%clk 0:00:12]} 66. Bg7 {[%clk 0:00:06]}  Kxa5 {[%clk 0:00:13]} 67. Bxh6 {[%clk 0:00:06]}  Bd4 {[%clk 0:00:13]} 68. Bg7 {[%clk 0:00:06]}  Be3 {[%clk 0:00:13]} 69. Bf6 {[%clk 0:00:06]}  Kb5 {[%clk 0:00:13]} 70. Bg5 {[%clk 0:00:07]}  Bd4 {[%clk 0:00:13]} 71. h6 {[%clk 0:00:07]}  Kc6 {[%clk 0:00:14]} 72. Bf6 {[%clk 0:00:06]} 1-0


[Site "https://www.chess.com"]

[Event "Late Titled Tuesday Blitz February 8 2022"]
[White "Jaferian, Koosha"]
[Black "Kukula, Pawel"]
[WhiteFideId "12507440"]
[BlackFideId "1115081"]
[WhiteElo "2027"]
[BlackElo "2203"]
[Result "1-0"]
[Round "08"]
[TimeControl "180+1"]
[Date "2022.02.09"]
[WhiteClock "0:01:36"]
[BlackClock "0:01:22"]

1. Nf3 {[%clk 0:03:00]}  d5 {[%clk 0:02:58]} 2. b3 {[%clk 0:03:01]}  Nc6 {[%clk 0:02:56]} 3. Bb2 {[%clk 0:03:02]}  f6 {[%clk 0:02:55]} 4. d4 {[%clk 0:03:02]}  Bf5 {[%clk 0:02:54]} 5. e3 {[%clk 0:03:02]}  e6 {[%clk 0:02:54]} 6. Bd3 {[%clk 0:03:03]}  Nge7 {[%clk 0:02:52]} 7. O-O {[%clk 0:03:02]}  Qd7 {[%clk 0:02:51]} 8. a3 {[%clk 0:03:02]}  g5 {[%clk 0:02:46]} 9. c4 {[%clk 0:03:01]}  h5 {[%clk 0:02:41]} 10. Nc3 {[%clk 0:02:58]}  h4 {[%clk 0:02:38]} 11. Bxf5 {[%clk 0:02:47]}  Nxf5 {[%clk 0:02:31]} 12. e4 {[%clk 0:02:40]}  dxe4 {[%clk 0:02:28]} 13. Nxe4 {[%clk 0:02:41]}  Be7 {[%clk 0:02:22]} 14. d5 {[%clk 0:02:41]}  exd5 {[%clk 0:02:17]} 15. cxd5 {[%clk 0:02:32]}  Ne5 {[%clk 0:02:15]} 16. Nxe5 {[%clk 0:02:23]}  fxe5 {[%clk 0:02:16]} 17. Bxe5 {[%clk 0:02:23]}  Rf8 {[%clk 0:01:57]} 18. Qh5+ {[%clk 0:02:22]}  Kd8 {[%clk 0:01:57]} 19. Rac1 {[%clk 0:02:20]}  Nd6 {[%clk 0:01:52]} 20. Nxg5 {[%clk 0:02:08]}  Bxg5 {[%clk 0:01:41]} 21. Qxg5+ {[%clk 0:02:08]}  Kc8 {[%clk 0:01:40]} 22. Qxh4 {[%clk 0:02:00]}  b6 {[%clk 0:01:40]} 23. Rc6 {[%clk 0:01:43]}  Kb7 {[%clk 0:01:39]} 24. Rfc1 {[%clk 0:01:44]}  Rac8 {[%clk 0:01:22]} 25. Bxd6 {[%clk 0:01:44]}  cxd6 {[%clk 0:01:22]} 26. Qc4 {[%clk 0:01:36]} 1-0


[Site "https://www.chess.com"]

[Event "Late Titled Tuesday Blitz February 8 2022"]
[White "Jobava, Baadur"]
[Black "Garcia Martin, Marta"]
[WhiteFideId "13601520"]
[BlackFideId "32084030"]
[WhiteElo "2617"]
[BlackElo "2102"]
[Result "1-0"]
[Round "08"]
[TimeControl "180+1"]
[Date "2022.02.08"]
[WhiteClock "0:00:44"]
[BlackClock "0:00:03"]

1. b3 {[%clk 0:03:00]}  b6 {[%clk 0:02:51]} 2. e4 {[%clk 0:03:00]}  Bb7 {[%clk 0:02:51]} 3. Nc3 {[%clk 0:02:59]}  e6 {[%clk 0:02:47]} 4. Bb2 {[%clk 0:02:57]}  Nf6 {[%clk 0:02:41]} 5. e5 {[%clk 0:02:57]}  Nd5 {[%clk 0:02:41]} 6. Nxd5 {[%clk 0:02:56]}  Bxd5 {[%clk 0:02:42]} 7. Ne2 {[%clk 0:02:57]}  Bb7 {[%clk 0:02:42]} 8. Nf4 {[%clk 0:02:55]}  d6 {[%clk 0:02:40]} 9. exd6 {[%clk 0:02:53]}  Qxd6 {[%clk 0:02:36]} 10. Qg4 {[%clk 0:02:52]}  e5 {[%clk 0:02:30]} 11. O-O-O {[%clk 0:02:43]}  Nd7 {[%clk 0:01:54]} 12. Bc4 {[%clk 0:02:22]}  O-O-O {[%clk 0:01:49]} 13. Ne2 {[%clk 0:02:15]}  Qg6 {[%clk 0:01:25]} 14. Qxg6 {[%clk 0:02:13]}  hxg6 {[%clk 0:01:25]} 15. Bxf7 {[%clk 0:02:13]}  Bxg2 {[%clk 0:01:25]} 16. Bxg6 {[%clk 0:02:08]}  Bxh1 {[%clk 0:01:23]} 17. Rxh1 {[%clk 0:02:09]}  Bc5 {[%clk 0:01:09]} 18. f4 {[%clk 0:02:06]}  Bd6 {[%clk 0:00:56]} 19. f5 {[%clk 0:02:05]}  Nf6 {[%clk 0:00:45]} 20. Ng3 {[%clk 0:02:05]}  Rh3 {[%clk 0:00:40]} 21. d3 {[%clk 0:01:52]}  Rdh8 {[%clk 0:00:39]} 22. Re1 {[%clk 0:01:52]}  Rxh2 {[%clk 0:00:35]} 23. Bxe5 {[%clk 0:01:52]}  Bxe5 {[%clk 0:00:33]} 24. Rxe5 {[%clk 0:01:53]}  Rg2 {[%clk 0:00:34]} 25. Ne4 {[%clk 0:01:46]}  Rhh2 {[%clk 0:00:34]} 26. Kb2 {[%clk 0:01:04]}  Rxc2+ {[%clk 0:00:33]} 27. Ka3 {[%clk 0:01:05]}  a5 {[%clk 0:00:23]} 28. Ka4 {[%clk 0:01:05]}  Rxa2+ {[%clk 0:00:21]} 29. Kb5 {[%clk 0:01:05]}  Rab2 {[%clk 0:00:19]} 30. Ka6 {[%clk 0:01:03]}  Rxb3 {[%clk 0:00:14]} 31. Re7 {[%clk 0:01:03]}  a4 {[%clk 0:00:05]} 32. Rxg7 {[%clk 0:01:02]}  Nxe4 {[%clk 0:00:05]} 33. dxe4 {[%clk 0:01:02]}  a3 {[%clk 0:00:04]} 34. e5 {[%clk 0:00:57]}  a2 {[%clk 0:00:03]} 35. Rg8+ {[%clk 0:00:56]}  Kd7 {[%clk 0:00:04]} 36. Be8+ {[%clk 0:00:50]}  Ke7 {[%clk 0:00:03]} 37. f6+ {[%clk 0:00:50]}  Ke6 {[%clk 0:00:03]} 38. f7 {[%clk 0:00:50]}  a1=Q+ {[%clk 0:00:03]} 39. Kb7 {[%clk 0:00:51]}  Rd2 {[%clk 0:00:01]} 40. f8=Q {[%clk 0:00:50]}  Kd5 {[%clk 0:00:01]} 41. Bf7+ {[%clk 0:00:49]}  Ke4 {[%clk 0:00:02]} 42. Rg4+ {[%clk 0:00:47]}  Kf3 {[%clk 0:00:02]} 43. Be6+ {[%clk 0:00:46]}  Ke3 {[%clk 0:00:02]} 44. Qf4+ {[%clk 0:00:45]}  Kd3 {[%clk 0:00:03]} 45. Qf3+ {[%clk 0:00:42]}  Kc2 {[%clk 0:00:03]} 46. Qxb3+ {[%clk 0:00:43]}  Kc1 {[%clk 0:00:03]} 47. Rg1+ {[%clk 0:00:44]} 1-0


[Site "https://www.chess.com"]

[Event "Late Titled Tuesday Blitz February 8 2022"]
[White "Kamsky, Gata"]
[Black "Goryachkina, Aleksandra"]
[WhiteFideId "2000024"]
[BlackFideId "4147103"]
[WhiteElo "2645"]
[BlackElo "2426"]
[Result "0-1"]
[Round "08"]
[TimeControl "180+1"]
[Date "2022.02.08"]
[WhiteClock "0:00:10"]
[BlackClock "0:00:04"]

1. e4 {[%clk 0:03:00]}  e6 {[%clk 0:02:58]} 2. Qe2 {[%clk 0:02:55]}  c5 {[%clk 0:02:56]} 3. Nf3 {[%clk 0:02:53]}  Nc6 {[%clk 0:02:54]} 4. g3 {[%clk 0:02:54]}  e5 {[%clk 0:02:41]} 5. Bg2 {[%clk 0:02:53]}  d6 {[%clk 0:02:41]} 6. O-O {[%clk 0:02:52]}  Nge7 {[%clk 0:02:27]} 7. c3 {[%clk 0:02:48]}  g6 {[%clk 0:02:20]} 8. b4 {[%clk 0:02:37]}  cxb4 {[%clk 0:02:15]} 9. cxb4 {[%clk 0:02:36]}  Bg7 {[%clk 0:02:09]} 10. b5 {[%clk 0:02:34]}  Na5 {[%clk 0:02:09]} 11. Ba3 {[%clk 0:02:28]}  O-O {[%clk 0:02:07]} 12. Bb4 {[%clk 0:02:23]}  Be6 {[%clk 0:02:05]} 13. d3 {[%clk 0:02:22]}  a6 {[%clk 0:01:56]} 14. Nc3 {[%clk 0:02:18]}  axb5 {[%clk 0:01:49]} 15. Nxb5 {[%clk 0:02:17]}  Nc8 {[%clk 0:01:48]} 16. Rfc1 {[%clk 0:02:13]}  Nc6 {[%clk 0:01:46]} 17. Bc3 {[%clk 0:01:53]}  d5 {[%clk 0:01:36]} 18. a4 {[%clk 0:01:42]}  Nd6 {[%clk 0:01:12]} 19. Nxd6 {[%clk 0:01:33]}  Qxd6 {[%clk 0:01:11]} 20. Ng5 {[%clk 0:01:34]}  d4 {[%clk 0:00:42]} 21. Bb2 {[%clk 0:01:27]}  Rfc8 {[%clk 0:00:41]} 22. Ba3 {[%clk 0:01:24]}  Qd7 {[%clk 0:00:41]} 23. Nxe6 {[%clk 0:01:24]}  Qxe6 {[%clk 0:00:41]} 24. Qf1 {[%clk 0:01:15]}  Bf8 {[%clk 0:00:20]} 25. Bh3 {[%clk 0:01:13]}  f5 {[%clk 0:00:20]} 26. exf5 {[%clk 0:01:13]}  gxf5 {[%clk 0:00:20]} 27. Bxf8 {[%clk 0:01:11]}  Rxf8 {[%clk 0:00:20]} 28. Rab1 {[%clk 0:01:07]}  Qe7 {[%clk 0:00:18]} 29. Qd1 {[%clk 0:01:06]}  e4 {[%clk 0:00:15]} 30. Qb3+ {[%clk 0:01:04]}  Kh8 {[%clk 0:00:15]} 31. Qxb7 {[%clk 0:01:04]}  Qxb7 {[%clk 0:00:15]} 32. Rxb7 {[%clk 0:01:03]}  Ne5 {[%clk 0:00:15]} 33. dxe4 {[%clk 0:01:03]}  fxe4 {[%clk 0:00:15]} 34. Rd1 {[%clk 0:01:02]}  Rxa4 {[%clk 0:00:14]} 35. Re7 {[%clk 0:01:02]}  Nf3+ {[%clk 0:00:13]} 36. Kg2 {[%clk 0:01:01]}  d3 {[%clk 0:00:13]} 37. Bg4 {[%clk 0:01:00]}  Rd4 {[%clk 0:00:09]} 38. h4 {[%clk 0:00:58]}  d2 {[%clk 0:00:09]} 39. Bxf3 {[%clk 0:00:57]}  exf3+ {[%clk 0:00:08]} 40. Kh3 {[%clk 0:00:57]}  Rc8 {[%clk 0:00:08]} 41. Re3 {[%clk 0:00:15]}  Rc1 {[%clk 0:00:06]} 42. Rxd2 {[%clk 0:00:15]}  Rxd2 {[%clk 0:00:06]} 43. Rxf3 {[%clk 0:00:16]}  Kg7 {[%clk 0:00:06]} 44. g4 {[%clk 0:00:15]}  Rcc2 {[%clk 0:00:05]} 45. Kg3 {[%clk 0:00:15]}  Re2 {[%clk 0:00:05]} 46. Rf4 {[%clk 0:00:14]}  Rc3+ {[%clk 0:00:05]} 47. f3 {[%clk 0:00:13]}  Rc7 {[%clk 0:00:05]} 48. Rd4 {[%clk 0:00:13]}  Rf7 {[%clk 0:00:04]} 49. Rd3 {[%clk 0:00:13]}  Rfe7 {[%clk 0:00:04]} 50. h5 {[%clk 0:00:12]}  h6 {[%clk 0:00:04]} 51. Rd6 {[%clk 0:00:11]}  R2e6 {[%clk 0:00:04]} 52. Rd5 {[%clk 0:00:11]}  Rf7 {[%clk 0:00:04]} 53. Rd3 {[%clk 0:00:11]}  Rfe7 {[%clk 0:00:04]} 54. Rd5 {[%clk 0:00:11]}  Re3 {[%clk 0:00:05]} 55. Kf2 {[%clk 0:00:10]}  Ra3 {[%clk 0:00:04]} 0-1


[Site "https://www.chess.com"]

[Event "Late Titled Tuesday Blitz February 8 2022"]
[White "Kanyamarala, Trisha"]
[Black "Stanisz, Patryk"]
[WhiteFideId "45004722"]
[BlackFideId "1123106"]
[WhiteElo "2002"]
[BlackElo "1876"]
[Result "1-0"]
[Round "08"]
[TimeControl "180+1"]
[Date "2022.02.09"]
[WhiteClock "0:00:21"]
[BlackClock "0:00:04"]

1. d4 {[%clk 0:03:00]}  f5 {[%clk 0:02:59]} 2. e4 {[%clk 0:02:57]}  fxe4 {[%clk 0:02:55]} 3. Nc3 {[%clk 0:02:58]}  g6 {[%clk 0:02:55]} 4. Nxe4 {[%clk 0:02:56]}  Bg7 {[%clk 0:02:55]} 5. Nf3 {[%clk 0:02:55]}  Nf6 {[%clk 0:02:55]} 6. Bd3 {[%clk 0:02:54]}  d6 {[%clk 0:02:46]} 7. h3 {[%clk 0:02:47]}  O-O {[%clk 0:02:45]} 8. O-O {[%clk 0:02:47]}  c6 {[%clk 0:02:39]} 9. Re1 {[%clk 0:02:44]}  Nxe4 {[%clk 0:02:21]} 10. Bxe4 {[%clk 0:02:44]}  Bf5 {[%clk 0:02:22]} 11. Bg5 {[%clk 0:02:38]}  Bxe4 {[%clk 0:02:15]} 12. Rxe4 {[%clk 0:02:37]}  Bf6 {[%clk 0:02:15]} 13. Bh6 {[%clk 0:02:35]}  Rf7 {[%clk 0:02:13]} 14. Ng5 {[%clk 0:02:34]}  Rf8 {[%clk 0:01:46]} 15. Ne6 {[%clk 0:02:32]}  Qa5 {[%clk 0:01:42]} 16. Nxf8 {[%clk 0:02:08]}  Na6 {[%clk 0:01:39]} 17. Ne6 {[%clk 0:02:04]}  Qf5 {[%clk 0:01:39]} 18. Qg4 {[%clk 0:02:00]}  Qb5 {[%clk 0:01:34]} 19. b3 {[%clk 0:01:53]}  c5 {[%clk 0:01:25]} 20. Bg5 {[%clk 0:01:52]}  Bh8 {[%clk 0:01:16]} 21. Bxe7 {[%clk 0:01:50]}  Re8 {[%clk 0:01:15]} 22. Bh4 {[%clk 0:01:33]}  d5 {[%clk 0:01:05]} 23. Ree1 {[%clk 0:01:29]}  cxd4 {[%clk 0:01:01]} 24. Ng5 {[%clk 0:01:24]}  d3 {[%clk 0:00:52]} 25. Rxe8+ {[%clk 0:01:09]}  Qxe8 {[%clk 0:00:53]} 26. c3 {[%clk 0:00:54]}  Bxc3 {[%clk 0:00:48]} 27. Rd1 {[%clk 0:00:53]}  Nc5 {[%clk 0:00:39]} 28. b4 {[%clk 0:00:45]}  h5 {[%clk 0:00:25]} 29. Qf3 {[%clk 0:00:40]}  Bxb4 {[%clk 0:00:13]} 30. Qxd5+ {[%clk 0:00:37]}  Kh8 {[%clk 0:00:13]} 31. Qd4+ {[%clk 0:00:36]}  Kg8 {[%clk 0:00:11]} 32. Qxb4 {[%clk 0:00:36]}  b6 {[%clk 0:00:10]} 33. Qc4+ {[%clk 0:00:35]}  Kh8 {[%clk 0:00:10]} 34. Qd4+ {[%clk 0:00:26]}  Kg8 {[%clk 0:00:09]} 35. Bg3 {[%clk 0:00:26]}  Qe2 {[%clk 0:00:08]} 36. Qd5+ {[%clk 0:00:23]}  Kg7 {[%clk 0:00:04]} 37. Qe5+ {[%clk 0:00:23]}  Kh6 {[%clk 0:00:05]} 38. Nf7+ {[%clk 0:00:21]}  Kh7 {[%clk 0:00:04]} 39. Qh8# {[%clk 0:00:21]} 1-0


[Site "https://www.chess.com"]